lending/lending_fUSD_20250131
["ID","MTS","AMOUNT","RATE_DAILY","PERIOD"]
[351059062,1738318244715,-500.0,0.00018949,2]
[351059063,1738318244725,-500.0,0.00018949,2]
[351059064,1738318244735,-500.0,0.00018949,2]
[351059065,1738318244744,-500.0,0.00018949,2]
[351059066,1738318244754,-500.0,0.00018949,2]
[351059067,1738318244763,-500.0,0.00018949,2]
[351059068,1738318244772,-500.0,0.00018949,2]
[351059069,1738318244782,-500.0,0.00018949,2]
[351059070,1738318244791,-500.0,0.00018949,2]
[351059071,1738318244801,-276.99300453,0.00018949,2]
[351059072,1738318244810,-500.0,0.00018949,2]
[351059073,1738318244819,-500.0,0.00018949,2]
[351059074,1738318244829,-525.3204661,0.00018949,2]
[351059075,1738318244838,-500.0,0.00018949,2]
[351059076,1738318244850,-192.57942327,0.00018949,2]
[351059077,1738318244860,-500.0,0.00018949,2]
[351059078,1738318244870,-658.98,0.00018949,2]
[351059079,1738318244879,-500.0,0.00018949,2]
[351059080,1738318244890,-1492.82,0.00018949,2]
[351059081,1738318244899,-500.0,0.00018949,2]
[351059082,1738318244909,-500.0,0.00018949,2]
[351059083,1738318244919,-880.52,0.00018949,2]
[351059084,1738318244928,-500.0,0.00018949,2]
[351059085,1738318244938,-500.0,0.00018949,2]
[351059086,1738318244952,-811.28,0.00018949,2]
[351059087,1738318244962,-500.0,0.00018949,2]
[351059088,1738318244972,-743.4,0.00018949,2]
[351059089,1738318244983,-500.0,0.00018949,2]
[351059090,1738318244992,-500.0,0.00018949,2]
[351059091,1738318245002,-571.27,0.00018949,2]
[351059092,1738318245012,-566.03,0.00018949,2]
[351059093,1738318245022,-1162.82,0.00018949,2]
[351059094,1738318245031,-512.47685826,0.00018949,2]
[351059095,1738318245041,-500.0,0.00018949,2]
[351059096,1738318245050,-500.0,0.00018949,2]
[351059097,1738318245060,-500.0,0.00018949,2]
[351059098,1738318245069,-505.44077906,0.00018949,2]
[351059099,1738318245079,-500.0,0.00018949,2]
[351059100,1738318245089,-500.0,0.00018949,2]
[351059101,1738318245097,-830.26,0.00018949,2]
[351059102,1738318245107,-500.0,0.00018949,2]
[351059103,1738318245116,-500.0,0.00018949,2]
[351059104,1738318245125,-500.0,0.00018949,2]
[351059105,1738318245134,-500.0,0.00018949,2]
[351059106,1738318245144,-500.0,0.00018949,2]
[351059107,1738318245154,-500.0,0.00018949,2]
[351059108,1738318245164,-1215.25,0.00018949,2]
[351059109,1738318245173,-1556.74,0.00018949,2]
[351059110,1738318245183,-500.0,0.00018949,2]
[351059111,1738318245193,-500.0,0.00018949,2]
[351059112,1738318245203,-500.0,0.00018949,2]
[351059113,1738318245212,-511.80144135,0.00018949,2]
[351059114,1738318245222,-1058.49,0.00018949,2]
[351059115,1738318245231,-500.0,0.00018949,2]
[351059116,1738318245241,-1307.2,0.00018949,2]
[351059117,1738318245250,-500.0,0.00018949,2]
[351059118,1738318245260,-510.1,0.00018949,2]
[351059119,1738318245269,-500.0,0.00018949,2]
[351059120,1738318245279,-500.0,0.00018949,2]
[351059121,1738318245288,-515.62,0.00018949,2]
[351059122,1738318245297,-808.16,0.00018949,2]
[351059123,1738318245307,-1200.6,0.00018949,2]
[351059124,1738318245319,-500.0,0.00018949,2]
[351059125,1738318245329,-500.0,0.00018949,2]
[351059126,1738318245338,-500.0,0.00018949,2]
[351059127,1738318245347,-500.0,0.00018949,2]
[351059128,1738318245357,-500.0,0.00018949,2]
[351059129,1738318245366,-1439.29,0.00018949,2]
[351059130,1738318245375,-500.0,0.00018949,2]
[351059131,1738318245384,-500.0,0.00018949,2]
[351059132,1738318245394,-500.0,0.00018949,2]
[351059133,1738318245403,-500.0,0.00018949,2]
[351059134,1738318245412,-500.0,0.00018949,2]
[351059135,1738318245422,-500.0,0.00018949,2]
[351059136,1738318245431,-500.0,0.00018949,2]
[351059137,1738318245440,-500.0,0.00018949,2]
[351059138,1738318245450,-500.0,0.00018949,2]
[351059139,1738318245460,-500.0,0.00018949,2]
[351059140,1738318245469,-1315.48,0.00018949,2]
[351059141,1738318245478,-500.0,0.00018949,2]
[351059142,1738318245488,-500.0,0.00018949,2]
[351059143,1738318245498,-500.0,0.00018949,2]
[351059144,1738318245507,-500.0,0.00018949,2]
[351059145,1738318245518,-320.85684162,0.00018949,2]
[351059146,1738318245528,-500.0,0.00018949,2]
[351059147,1738318245538,-500.0,0.00018949,2]
[351059148,1738318245547,-920.1,0.00018949,2]
[351059149,1738318245556,-500.0,0.00018949,2]
[351059150,1738318245565,-500.0,0.00018949,2]
[351059151,1738318245574,-500.0,0.00018949,2]
[351059152,1738318245584,-500.0,0.00018949,2]
[351059153,1738318245593,-500.0,0.00018949,2]
[351059154,1738318245603,-500.0,0.00018949,2]
[351059155,1738318245612,-500.0,0.00018949,2]
[351059156,1738318245621,-500.0,0.00018949,2]
[351059157,1738318245632,-500.0,0.00018949,2]
[351059158,1738318245641,-500.0,0.00018949,2]
[351059159,1738318245651,-907.24,0.00018949,2]
[351059160,1738318245660,-500.0,0.00018949,2]
[351059161,1738318245670,-1048.68,0.00018949,2]
[351059162,1738318245679,-588.52,0.00018949,2]
[351059163,1738318245689,-500.0,0.00018949,2]
[351059164,1738318245700,-509.6977088,0.00018949,2]
[351059165,1738318245710,-500.0,0.00018949,2]
[351059166,1738318245719,-500.0,0.00018949,2]
[351059167,1738318245729,-500.0,0.00018949,2]
[351059168,1738318245738,-500.0,0.00018949,2]
[351059169,1738318245748,-930.75,0.00018949,2]
[351059170,1738318245758,-1872.66,0.00018949,2]
[351059171,1738318245769,-500.0,0.00018949,2]
[351059172,1738318245779,-500.0,0.00018949,2]
[351059173,1738318245790,-500.0,0.00018949,2]
[351059174,1738318245799,-500.0,0.00018949,2]
[351059175,1738318245809,-500.0,0.00018949,2]
[351059176,1738318245819,-500.0,0.00018949,2]
[351059177,1738318245828,-500.0,0.00018949,2]
[351059178,1738318245838,-500.0,0.00018949,2]
[351059179,1738318245847,-500.0,0.00018949,2]
[351059180,1738318245858,-508.99302108,0.00018949,2]
[351059181,1738318245867,-500.0,0.00018949,2]
[351059182,1738318245877,-583.33,0.00018949,2]
[351059183,1738318245886,-500.0,0.00018949,2]
[351059184,1738318245895,-500.0,0.00018949,2]
[351059185,1738318245904,-500.0,0.00018949,2]
[351059186,1738318245914,-500.0,0.00018949,2]
[351059187,1738318245923,-1740.67,0.00018949,2]
[351059188,1738318245932,-500.0,0.00018949,2]
[351059189,1738318245942,-406.32288298,0.00018949,2]
[351059190,1738318245952,-500.0,0.00018949,2]
[351059191,1738318245961,-967.51,0.00018949,2]
[351059192,1738318245970,-500.0,0.00018949,2]
[351059193,1738318245980,-500.0,0.00018949,2]
[351059194,1738318245989,-500.0,0.00018949,2]
[351059195,1738318245998,-500.0,0.00018949,2]
[351059196,1738318246008,-500.0,0.00018949,2]
[351059197,1738318246017,-500.0,0.00018949,2]
[351059198,1738318246027,-1846.09,0.00018949,2]
[351059199,1738318246036,-500.0,0.00018949,2]
[351059200,1738318246045,-1004.95,0.00018949,2]
[351059201,1738318246054,-500.0,0.00018949,2]
[351059202,1738318246064,-584.56679609,0.00018949,2]
[351059203,1738318246073,-741.16,0.00018949,2]
[351059204,1738318246083,-500.0,0.00018949,2]
[351059205,1738318246092,-500.0,0.00018949,2]
[351059206,1738318246101,-500.0,0.00018949,2]
[351059207,1738318246111,-500.0,0.00018949,2]
[351059208,1738318246120,-288.53459348,0.00018949,2]
[351059209,1738318246129,-500.0,0.00018949,2]
[351059210,1738318246138,-1208.52,0.00018949,2]
[351059211,1738318246147,-984.63,0.00018949,2]
[351059212,1738318246156,-500.0,0.00018949,2]
[351059213,1738318246166,-500.0,0.00018949,2]
[351059214,1738318246175,-500.0,0.00018949,2]
[351059215,1738318246183,-500.0,0.00018949,2]
[351059216,1738318246194,-500.0,0.00018949,2]
[351059217,1738318246203,-500.0,0.00018949,2]
[351059218,1738318246212,-500.0,0.00018949,2]
[351059219,1738318246222,-500.0,0.00018949,2]
[351059220,1738318246232,-500.0,0.00018949,2]
[351059221,1738318246241,-1331.65,0.00018949,2]
[351059222,1738318246251,-500.0,0.00018949,2]
[351059223,1738318246260,-508.35880062,0.00018949,2]
[351059224,1738318246270,-500.0,0.00018949,2]
[351059225,1738318246279,-500.0,0.00018949,2]
[351059226,1738318246289,-1641.64,0.00018949,2]
[351059227,1738318246298,-500.0,0.00018949,2]
[351059228,1738318246308,-534.13053045,0.00018949,2]
[351059229,1738318246319,-500.0,0.00018949,2]
[351059230,1738318246329,-500.0,0.00018949,2]
[351059231,1738318246338,-500.0,0.00018949,2]
[351059232,1738318246347,-500.0,0.00018949,2]
[351059233,1738318246356,-500.0,0.00018949,2]
[351059234,1738318246366,-500.0,0.00018949,2]
[351059235,1738318246375,-500.0,0.00018949,2]
[351059236,1738318246385,-500.0,0.00018949,2]
[351059237,1738318246395,-500.0,0.00018949,2]
[351059238,1738318246405,-601.86,0.00018949,2]
[351059239,1738318246415,-500.0,0.00018949,2]
[351059240,1738318246424,-500.0,0.00018949,2]
[351059241,1738318246434,-500.0,0.00018949,2]
[351059242,1738318246444,-500.0,0.00018949,2]
[351059243,1738318246453,-786.7,0.00018949,2]
[351059244,1738318246462,-1672.91,0.00018949,2]
[351059245,1738318246472,-500.0,0.00018949,2]
[351059246,1738318246482,-500.0,0.00018949,2]
[351059247,1738318246491,-1301.18,0.00018949,2]
[351059248,1738318246501,-500.0,0.00018949,2]
[351059249,1738318246510,-500.0,0.00018949,2]
[351059250,1738318246519,-505.29194283,0.00018949,2]
[351059251,1738318246528,-500.0,0.00018949,2]
[351059252,1738318246537,-513.36532745,0.00018949,2]
[351059253,1738318246546,-500.0,0.00018949,2]
[351059254,1738318246556,-501.88,0.00018949,2]
[351059255,1738318246565,-1095.77,0.00018949,2]
[351059256,1738318246575,-500.0,0.00018949,2]
[351059257,1738318246584,-500.0,0.00018949,2]
[351059258,1738318246594,-500.0,0.00018949,2]
[351059259,1738318246603,-504.00877584,0.00018949,2]
[351059260,1738318246612,-500.0,0.00018949,2]
[351059261,1738318246623,-500.0,0.00018949,2]
[351059262,1738318246632,-500.0,0.00018949,2]
[351059263,1738318246641,-1661.53,0.00018949,2]
[351059264,1738318246650,-500.0,0.00018949,2]
[351059265,1738318246659,-500.0,0.00018949,2]
[351059266,1738318246669,-1076.12,0.00018949,2]
[351059269,1738318246679,-1076.12,0.00018949,2]
[351059272,1738318246688,-1076.12,0.00018949,2]
[351059275,1738318246699,-1076.12,0.00018949,2]
[351059277,1738318246708,-500.0,0.00018949,2]
[351059279,1738318246717,-1076.12,0.00018949,2]
[351059281,1738318246726,-500.0,0.00018949,2]
[351059284,1738318246736,-1076.12,0.00018949,2]
[351059315,1738318246745,-1191.32,0.00018949,2]
[351059319,1738318246981,-500.0,0.00018949,2]
[351059321,1738318246991,-1076.12,0.00018949,2]
[351059323,1738318247001,-1076.12,0.00018949,2]
[351059325,1738318247010,-1076.12,0.00018949,2]
[351059327,1738318247019,-1076.12,0.00018949,2]
[351059329,1738318247029,-1076.12,0.00018949,2]
[351059331,1738318247038,-1076.12,0.00018949,2]
[351059333,1738318247047,-508.10056349,0.00018949,2]
[351059335,1738318247056,-1076.12,0.00018949,2]
[351059337,1738318247065,-500.0,0.00018949,2]
[351059339,1738318247074,-1076.12,0.00018949,2]
[351059341,1738318247085,-1076.12,0.00018949,2]
[351059343,1738318247095,-1076.12,0.00018949,2]
[351059344,1738318247105,-1076.12,0.00018949,2]
[351059346,1738318247114,-500.0,0.00018949,2]
[351059348,1738318247123,-500.0,0.00018949,2]
[351059350,1738318247132,-597.22,0.00018949,2]
[351059352,1738318247140,-2203.96,0.00018949,2]
[351059354,1738318247150,-500.0,0.00018949,2]
[351059356,1738318247158,-613.72,0.00018949,2]
[351059358,1738318247169,-511.9665663,0.00018949,2]
[351059360,1738318247178,-500.0,0.00018949,2]
[351059362,1738318247187,-2513.34,0.00018949,2]
[351059364,1738318247198,-500.0,0.00018949,2]
[351059365,1738318247207,-506.16123979,0.00018949,2]
[351059366,1738318247215,-500.0,0.00018949,2]
[351059367,1738318247224,-500.0,0.00018949,2]
[351059368,1738318247233,-1828.03,0.00018949,2]
[351059369,1738318247241,-500.0,0.00018949,2]
[351059370,1738318247251,-534.50761977,0.00018949,2]
[351059371,1738318247259,-503.69805379,0.00018949,2]
[351059372,1738318247268,-1279.21,0.00018949,2]
[351059373,1738318247277,-662.31,0.00018949,2]
[351059374,1738318247286,-500.0,0.00018949,2]
[351059375,1738318247294,-500.0,0.00018949,2]
[351059376,1738318247303,-500.0,0.00018949,2]
[351059377,1738318247312,-1045.14,0.00018949,2]
[351059378,1738318247326,-1961.04,0.00018949,2]
[351059379,1738318247334,-500.0,0.00018949,2]
[351059381,1738318247343,-500.28919726,0.00018949,2]
[351059383,1738318247352,-500.0,0.00018949,2]
[351059385,1738318247361,-500.0,0.00018949,2]
[351059387,1738318247370,-1497.82,0.00018949,2]
[351059389,1738318247379,-706.28,0.00018949,2]
[351059391,1738318247387,-500.0,0.00018949,2]
[351059393,1738318247397,-500.0,0.00018949,2]
[351059395,1738318247407,-500.0,0.00018949,2]
[351059397,1738318247416,-500.0,0.00018949,2]
[351059399,1738318247425,-1258.03,0.00018949,2]
[351059401,1738318247434,-507.24022492,0.00018949,2]
[351059403,1738318247445,-500.0,0.00018949,2]
[351059405,1738318247454,-3132.57,0.00018949,2]
[351059407,1738318247463,-500.0,0.00018949,2]
[351059409,1738318247472,-500.0,0.00018949,2]
[351059410,1738318247481,-500.0,0.00018949,2]
[351059412,1738318247490,-500.0,0.00018949,2]
[351059414,1738318247500,-1005.31,0.00018949,2]
[351059416,1738318247509,-500.0,0.00018949,2]
[351059418,1738318247518,-502.60978157,0.00018949,2]
[351059420,1738318247528,-500.0,0.00018949,2]
[351059422,1738318247538,-501.55935853,0.00018949,2]
[351059425,1738318247547,-584.28,0.00018949,2]
[351059427,1738318247557,-881.35,0.00018949,2]
[351059429,1738318247567,-500.0,0.00018949,2]
[351059431,1738318247576,-500.0,0.00018949,2]
[351059433,1738318247584,-896.58,0.00018949,2]
[351059435,1738318247594,-532.94187759,0.00018949,2]
[351059437,1738318247603,-523.83530302,0.00018949,2]
[351059439,1738318247612,-528.7843124,0.00018949,2]
[351059441,1738318247621,-4010.03,0.00018949,2]
[351059443,1738318247630,-500.0,0.00018949,2]
[351059445,1738318247639,-1127.22,0.00018949,2]
[351059447,1738318247649,-505.26707016,0.00018949,2]
[351059449,1738318247658,-500.0,0.00018949,2]
[351059451,1738318247667,-500.0,0.00018949,2]
[351059453,1738318247677,-712.97,0.00018949,2]
[351059455,1738318247686,-388.08763529,0.00018949,2]
[351059457,1738318247697,-500.0,0.00018949,2]
[351059459,1738318247706,-502.10240461,0.00018949,2]
[351059461,1738318247715,-500.0,0.00018949,2]
[351059463,1738318247725,-500.0,0.00018949,2]
[351059465,1738318247735,-502.63849512,0.00018949,2]
[351059467,1738318247744,-3492.51,0.00018949,2]
[351059469,1738318247753,-500.0,0.00018949,2]
[351059471,1738318247762,-500.0,0.00018949,2]
[351059473,1738318247772,-500.0,0.00018949,2]
[351059475,1738318247781,-532.37298329,0.00018949,2]
[351059477,1738318247790,-500.0,0.00018949,2]
[351059479,1738318247799,-500.0,0.00018949,2]
[351059481,1738318247809,-500.0,0.00018949,2]
[351059483,1738318247818,-1657.81,0.00018949,2]
[351059485,1738318247827,-500.0,0.00018949,2]
[351059487,1738318247836,-510.2520093,0.00018949,2]
[351059489,1738318247846,-1931.93,0.00018949,2]
[351059491,1738318247854,-500.0,0.00018949,2]
[351059492,1738318247864,-500.0,0.00018949,2]
[351059494,1738318247873,-500.0,0.00018949,2]
[351059495,1738318247883,-6837.32,0.00018949,2]
[351059496,1738318247892,-3542.38,0.00018949,2]
[351059497,1738318247902,-500.0,0.00018949,2]
[351059498,1738318247912,-11879.93,0.00018949,2]
[351059499,1738318247922,-573.59,0.00018949,2]
[351059500,1738318247931,-500.0,0.00018949,2]
[351059501,1738318247941,-937.67,0.00018949,2]
[351059502,1738318247951,-500.0,0.00018949,2]
[351059503,1738318247961,-1053.49,0.00018949,2]
[351059504,1738318247970,-500.0,0.00018949,2]
[351059505,1738318247980,-614.58,0.00018949,2]
[351059506,1738318247991,-507.05386071,0.00018949,2]
[351059507,1738318248000,-500.0,0.00018949,2]
[351059508,1738318248010,-2017.93,0.00018949,2]
[351059509,1738318248020,-500.0,0.00018949,2]
[351059510,1738318248030,-519.8323174,0.00018949,2]
[351059511,1738318248040,-1409.03,0.00018949,2]
[351059512,1738318248051,-500.0,0.00018949,2]
[351059513,1738318248061,-500.0,0.00018949,2]
[351059514,1738318248070,-1409.03,0.00018949,2]
[351059515,1738318248080,-1409.03,0.00018949,2]
[351059516,1738318248089,-1409.03,0.00018949,2]
[351059517,1738318248099,-1409.03,0.00018949,2]
[351059518,1738318248108,-1409.03,0.00018949,2]
[351059519,1738318248118,-1409.03,0.00018949,2]
[351059520,1738318248127,-1409.03,0.00018949,2]
[351059521,1738318248137,-1409.03,0.00018949,2]
[351059522,1738318248147,-1409.03,0.00018949,2]
[351059523,1738318248156,-500.0,0.00018949,2]
[351059524,1738318248166,-500.0,0.00018949,2]
[351059525,1738318248175,-1409.03,0.00018949,2]
[351059526,1738318248185,-1409.03,0.00018949,2]
[351059527,1738318248197,-1017.78,0.00018949,2]
[351059528,1738318248207,-1409.03,0.00018949,2]
[351059529,1738318248218,-1409.03,0.00018949,2]
[351059530,1738318248228,-1409.03,0.00018949,2]
[351059531,1738318248238,-1409.03,0.00018949,2]
[351059532,1738318248247,-1409.03,0.00018949,2]
[351059533,1738318248257,-1409.03,0.00018949,2]
[351059534,1738318248267,-1409.03,0.00018949,2]
[351059535,1738318248276,-500.0,0.00018949,2]
[351059536,1738318248285,-1409.03,0.00018949,2]
[351059537,1738318248295,-512.37364824,0.00018949,2]
[351059538,1738318248305,-1132.82,0.00018949,2]
[351059539,1738318248317,-500.0,0.00018949,2]
[351059540,1738318248331,-1409.03,0.00018949,2]
[351059541,1738318248340,-1538.58,0.00018949,2]
[351059542,1738318248350,-1409.03,0.00018949,2]
[351059543,1738318248360,-1409.03,0.00018949,2]
[351059544,1738318248370,-1409.11,0.00018949,2]
[351059545,1738318248380,-500.0,0.00018949,2]
[351059546,1738318248389,-507.46966807,0.00018949,2]
[351059547,1738318248401,-216.65419036,0.00018949,2]
[351059548,1738318248412,-500.0,0.00018949,2]
[351059549,1738318248422,-311.05431154,0.00018949,2]
[351059550,1738318248435,-500.0,0.00018949,2]
[351059551,1738318248444,-3101.08,0.00018949,2]
[351059552,1738318248454,-500.0,0.00018949,2]
[351059553,1738318248463,-500.0,0.00018949,2]
[351059554,1738318248473,-2398.9,0.00018949,2]
[351059555,1738318248482,-9768.32,0.00018949,2]
[351059556,1738318248492,-500.0,0.00018949,2]
[351059557,1738318248502,-500.0,0.00018949,2]
[351059558,1738318248511,-500.0,0.00018949,2]
[351059559,1738318248521,-500.0,0.00018949,2]
[351059560,1738318248531,-1062.14,0.00018949,2]
[351059561,1738318248540,-500.0,0.00018949,2]
[351059562,1738318248550,-500.0,0.00018949,2]
[351059563,1738318248560,-3944.14,0.00018949,2]
[351059564,1738318248570,-500.0,0.00018949,2]
[351059565,1738318248579,-756.85,0.00018949,2]
[351059566,1738318248588,-506.54489706,0.00018949,2]
[351059567,1738318248598,-500.0,0.00018949,2]
[351059568,1738318248607,-500.0,0.00018949,2]
[351059569,1738318248617,-1747.61,0.00018949,2]
[351059570,1738318248626,-2074.35,0.00018949,2]
[351059571,1738318248636,-500.0,0.00018949,2]
[351059572,1738318248646,-552.51477612,0.00018949,2]
[351059573,1738318248656,-458.28781428,0.00018949,2]
[351059574,1738318248666,-1886.22,0.00018949,2]
[351059575,1738318248676,-500.0,0.00018949,2]
[351059576,1738318248685,-500.0,0.00018949,2]
[351059577,1738318248696,-500.0,0.00018949,2]
[351059578,1738318248706,-2318.93,0.00018949,2]
[351059579,1738318248715,-1640.14,0.00018949,2]
[351059580,1738318248725,-500.0,0.00018949,2]
[351059581,1738318248734,-500.0,0.00018949,2]
[351059582,1738318248744,-8793.11,0.00018949,2]
[351059583,1738318248754,-500.0,0.00018949,2]
[351059584,1738318248764,-1232.79,0.00018949,2]
[351059585,1738318248773,-500.0,0.00018949,2]
[351059586,1738318248783,-500.0,0.00018949,2]
[351059587,1738318248793,-500.0,0.00018949,2]
[351059588,1738318248803,-2583.5,0.00018949,2]
[351059589,1738318248813,-4153.59,0.00018949,2]
[351059590,1738318248822,-500.0,0.00018949,2]
[351059591,1738318248832,-500.0,0.00018949,2]
[351059592,1738318248842,-500.0,0.00018949,2]
[351059593,1738318248851,-500.0,0.00018949,2]
[351059594,1738318248861,-500.0,0.00018949,2]
[351059595,1738318248870,-500.0,0.00018949,2]
[351059596,1738318248880,-500.0,0.00018949,2]
[351059597,1738318248890,-503.6132671,0.00018949,2]
[351059598,1738318248899,-1333.01,0.00018949,2]
[351059599,1738318248909,-348.25937792,0.00018949,2]
[351059600,1738318248918,-500.0,0.00018949,2]
[351059601,1738318248928,-500.0,0.00018949,2]
[351059602,1738318248937,-500.0,0.00018949,2]
[351059603,1738318248947,-542.49,0.00018949,2]
[351059604,1738318248957,-500.0,0.00018949,2]
[351059605,1738318248967,-8784.62,0.00018949,2]
[351059606,1738318248977,-500.0,0.00018949,2]
[351059607,1738318248987,-500.0,0.00018949,2]
[351059608,1738318248997,-1777.06,0.00018949,2]
[351059609,1738318249007,-500.0,0.00018949,2]
[351059610,1738318249016,-1940.84,0.00018949,2]
[351059611,1738318249025,-500.0,0.00018949,2]
[351059612,1738318249035,-3016.86,0.00018949,2]
[351059613,1738318249044,-217.06702244,0.00018949,2]
[351059614,1738318249054,-397.98519691,0.00018949,2]
[351059615,1738318249063,-500.0,0.00018949,2]
[351059616,1738318249072,-500.0,0.00018949,2]
[351059617,1738318249082,-500.0,0.00018949,2]
[351059618,1738318249091,-500.0,0.00018949,2]
[351059619,1738318249100,-500.0,0.00018949,2]
[351059620,1738318249110,-500.0,0.00018949,2]
[351059621,1738318249119,-503.6991823,0.00018949,2]
[351059622,1738318249128,-500.0,0.00018949,2]
[351059623,1738318249138,-500.0,0.00018949,2]
[351059624,1738318249147,-2232.28,0.00018949,2]
[351059625,1738318249157,-500.0,0.00018949,2]
[351059626,1738318249166,-1991.58,0.00018949,2]
[351059627,1738318249176,-500.0,0.00018949,2]
[351059628,1738318249186,-1540.48,0.00018949,2]
[351059629,1738318249196,-500.0,0.00018949,2]
[351059630,1738318249205,-512.11773344,0.00018949,2]
[351059631,1738318249215,-3873.1,0.00018949,2]
[351059632,1738318249225,-500.0,0.00018949,2]
[351059633,1738318249234,-696.03,0.00018949,2]
[351059634,1738318249244,-500.0,0.00018949,2]
[351059635,1738318249253,-267.22047243,0.00018949,2]
[351059636,1738318249263,-151.0,0.00018949,2]
[351059637,1738318249273,-500.0,0.00018949,2]
[351059638,1738318249283,-500.0,0.00018949,2]
[351059639,1738318249292,-502.09251762,0.00018949,2]
[351059640,1738318249302,-1665.09,0.00018949,2]
[351059641,1738318249311,-3835.42,0.00018949,2]
[351059642,1738318249327,-220.984685,0.00018949,2]
[351059643,1738318249337,-500.0,0.00018949,2]
[351059644,1738318249347,-521.20820208,0.00018949,2]
[351059645,1738318249357,-1792.03,0.00018949,2]
[351059646,1738318249367,-500.0,0.00018949,2]
[351059647,1738318249376,-500.0,0.00018949,2]
[351059648,1738318249386,-3106.75,0.00018949,2]
[351059649,1738318249397,-2868.4,0.00018949,2]
[351059650,1738318249407,-1304.8,0.00018949,2]
[351059651,1738318249417,-1896.39,0.00018949,2]
[351059652,1738318249427,-1896.39,0.00018949,2]
[351059653,1738318249437,-739.11,0.00018949,2]
[351059654,1738318249448,-500.0,0.00018949,2]
[351059655,1738318249458,-1896.39,0.00018949,2]
[351059656,1738318249467,-1896.39,0.00018949,2]
[351059657,1738318249478,-1896.39,0.00018949,2]
[351059658,1738318249487,-1896.39,0.00018949,2]
[351059659,1738318249497,-1896.39,0.00018949,2]
[351059660,1738318249507,-562.20114704,0.00018949,2]
[351059661,1738318249516,-1896.39,0.00018949,2]
[351059662,1738318249526,-500.0,0.00018949,2]
[351059663,1738318249536,-1896.39,0.00018949,2]
[351059664,1738318249545,-1896.39,0.00018949,2]
[351059665,1738318249555,-1896.39,0.00018949,2]
[351059666,1738318249565,-1896.39,0.00018949,2]
[351059667,1738318249575,-1896.39,0.00018949,2]
[351059668,1738318249584,-1896.39,0.00018949,2]
[351059669,1738318249594,-1896.39,0.00018949,2]
[351059670,1738318249604,-1896.39,0.00018949,2]
[351059671,1738318249614,-1905.32,0.00018949,2]
[351059672,1738318249623,-1896.39,0.00018949,2]
[351059673,1738318249632,-1896.39,0.00018949,2]
[351059674,1738318249642,-1896.39,0.00018949,2]
[351059675,1738318249652,-1896.5229547,0.00018949,2]
[351059676,1738318249662,-500.0,0.00018949,2]
[351059677,1738318249672,-502.98626182,0.00018949,2]
[351059678,1738318249682,-2016.37,0.00018949,2]
[351059679,1738318249691,-832.17,0.00018949,2]
[351059680,1738318249701,-500.0,0.00018949,2]
[351059681,1738318249711,-500.0,0.00018949,2]
[351059682,1738318249721,-500.0,0.00018949,2]
[351059683,1738318249731,-500.0,0.00018949,2]
[351059684,1738318249740,-513.68654572,0.00018949,2]